fUSD/lending_fUSD_20250110
["ID","MTS","AMOUNT","RATE_DAILY","PERIOD"]
[348460799,1736537457938,-300.0,0.00012,2]
[348460800,1736537457948,-150.0,0.00012017,2]
[348460801,1736537457958,-816.81408836,0.00012027,2]
[348460802,1736537457968,-150.0,0.00012027,2]
[348460803,1736537457979,-150.0,0.00012035,2]
[348460804,1736537457989,-1500.0,0.0001204,2]
[348460805,1736537457999,-150.0,0.00012044,2]
[348460806,1736537458009,-917.30224934,0.00012044,2]
[348460807,1736537458028,-150.0,0.00012046,2]
[348460808,1736537458038,-1500.0,0.00012047,2]
[348460809,1736537458048,-1500.0,0.00012047,2]
[348460810,1736537458059,-710.4185324,0.00012053,2]
[348460811,1736537458070,-1500.0,0.00012054,2]
[348460812,1736537458082,-200.0,0.00012055,2]
[348460813,1736537458092,-1500.0,0.00012057,2]
[348460814,1736537458103,-150.0,0.0001206,2]
[348460815,1736537458114,-150.0,0.00012069,2]
[348460816,1736537458125,-150.0,0.00012072,2]
[348460817,1736537458135,-150.0,0.00012074,2]
[348460818,1736537458147,-200.37027247,0.00012082,2]
[348460819,1736537458157,-300.0,0.00012085,2]
[348460820,1736537458167,-150.0,0.00012085,2]
[348460821,1736537458177,-150.0,0.00012091,2]
[348460822,1736537458187,-150.0,0.00012091,2]
[348460823,1736537458198,-150.0,0.00012091,2]
[348460824,1736537458208,-150.0,0.00012094,2]
[348460825,1736537458218,-150.0,0.00012097,2]
[348460826,1736537458228,-150.0,0.00012097,2]
[348460827,1736537458238,-1500.0,0.00012098,2]
[348460828,1736537458248,-1500.0,0.00012098,2]
[348460829,1736537458259,-6538.919,0.00012099,2]
[348460830,1736537458274,-150.0,0.00012099,2]
[348460831,1736537458285,-1500.0,0.00012099,2]
[348460832,1736537458295,-150.0,0.00012101,2]
[348460833,1736537458305,-150.0,0.00012101,2]
[348460834,1736537458315,-1500.0,0.00012103,2]
[348460835,1736537458326,-150.0,0.00012103,2]
[348460836,1736537458336,-315.168,0.00012105,2]
[348460837,1736537458346,-150.0,0.00012105,2]
[348460838,1736537458357,-300.0,0.00012106,2]
[348460839,1736537458367,-1500.0,0.00012106,2]
[348460840,1736537458377,-150.0,0.00012107,2]
[348460841,1736537458387,-10741.59156092,0.00012107,4]
[348460842,1736537458397,-1500.0,0.00012109,2]
[348460843,1736537458407,-150.0,0.0001211,2]
[348460844,1736537458417,-300.0,0.00012116,2]
[348460845,1736537458427,-150.0,0.00012118,2]
[348460846,1736537458438,-150.0,0.00012119,2]
[348460847,1736537458448,-150.0,0.00012119,2]
[348460848,1736537458458,-150.0,0.00012122,2]
[348460849,1736537458468,-150.0,0.00012123,2]
[348460850,1736537458478,-150.0,0.00012134,2]
[348460851,1736537458487,-150.0,0.00012135,2]
[348460852,1736537458498,-150.0,0.00012135,2]
[348460853,1736537458509,-150.0,0.00012137,2]
[348460854,1736537458522,-150.0,0.00012137,2]
[348460855,1736537458532,-150.0,0.0001214,2]
[348460856,1736537458542,-150.0,0.00012141,2]
[348460857,1736537458552,-1500.0,0.00012141,2]
[348460858,1736537458562,-150.0,0.00012147,2]
[348460859,1736537458572,-1500.0,0.0001215,2]
[348460860,1736537458582,-150.0,0.00012151,2]
[348460861,1736537458592,-150.0,0.00012151,2]
[348460862,1736537458602,-1500.0,0.00012155,2]
[348460863,1736537458612,-300.0,0.00012156,2]
[348460864,1736537458622,-150.0,0.00012157,2]
[348460865,1736537458633,-150.0,0.00012159,2]
[348460866,1736537458643,-150.0,0.0001216,2]
[348460867,1736537458654,-150.0,0.00012167,2]
[348460868,1736537458664,-150.0,0.00012171,2]
[348460869,1736537458674,-150.0,0.00012173,2]
[348460870,1736537458683,-150.0,0.00012179,2]
[348460871,1736537458693,-150.0,0.00012182,2]
[348460872,1736537458705,-150.0,0.00012183,2]
[348460873,1736537458715,-150.0,0.00012183,2]
[348460874,1736537458725,-1500.0,0.00012184,2]
[348460875,1736537458734,-150.0,0.00012185,2]
[348460876,1736537458744,-564.4029688,0.00012187,2]
[348460877,1736537458755,-500.0,0.00012187,2]
[348460878,1736537458767,-500.0,0.00012187,2]
[348460879,1736537458777,-500.0,0.00012187,2]
[348460880,1736537458787,-500.0,0.00012187,2]
[348460881,1736537458799,-500.0,0.00012187,2]
[348460882,1736537458809,-500.0,0.00012187,2]
[348460883,1736537458823,-485.80238199,0.00012187,2]
[348460884,1736537458833,-560.64,0.00012187,2]
[348460885,1736537458844,-500.0,0.00012187,2]
[348460886,1736537458855,-500.0,0.00012187,2]
[348460887,1736537458865,-500.0,0.00012187,2]
[348460888,1736537458875,-512.1,0.00012187,2]
[348460889,1736537458885,-500.0,0.00012187,2]
[348460890,1736537458894,-500.0,0.00012187,2]
[348460891,1736537458904,-500.0,0.00012187,2]
[348460892,1736537458914,-500.0,0.00012187,2]
[348460893,1736537458923,-782.15,0.00012187,2]
[348460894,1736537458933,-500.0,0.00012187,2]
[348460895,1736537458941,-500.0,0.00012187,2]
[348460896,1736537458951,-500.0,0.00012187,2]
[348460897,1736537458962,-500.0,0.00012187,2]
[348460898,1736537458971,-500.0,0.00012187,2]
[348460899,1736537458982,-500.0,0.00012187,2]
[348460900,1736537458992,-607.64,0.00012187,2]
[348460901,1736537459002,-500.0,0.00012187,2]
[348460902,1736537459013,-500.0,0.00012187,2]
[348460903,1736537459022,-500.0,0.00012187,2]
[348460904,1736537459032,-500.0,0.00012187,2]
[348460905,1736537459042,-566.54,0.00012187,2]
[348460906,1736537459051,-500.0,0.00012187,2]
[348460907,1736537459061,-614.45,0.00012187,2]
[348460908,1736537459070,-500.0,0.00012187,2]
[348460909,1736537459080,-500.0,0.00012187,2]
[348460910,1736537459091,-564.020936,0.00012187,2]
[348460911,1736537459101,-500.0,0.00012187,2]
[348460912,1736537459111,-907.6,0.00012187,2]
[348460913,1736537459121,-869.78,0.00012187,2]
[348460914,1736537459132,-500.0,0.00012187,2]
[348460915,1736537459141,-600.86,0.00012187,2]
[348460916,1736537459151,-516.616166,0.00012187,2]
[348460917,1736537459161,-500.0,0.00012187,2]
[348460918,1736537459171,-500.0,0.00012187,2]
[348460919,1736537459182,-500.0,0.00012187,2]
[348460920,1736537459191,-508.79,0.00012187,2]
[348460921,1736537459201,-2709.1,0.00012187,2]
[348460922,1736537459211,-2596.22,0.00012187,2]
[348460923,1736537459221,-500.0,0.00012187,2]
[348460924,1736537459230,-500.0,0.00012187,2]
[348460925,1736537459240,-500.0,0.00012187,2]
[348460926,1736537459250,-500.0,0.00012187,2]
[348460927,1736537459259,-500.0,0.00012187,2]
[348460928,1736537459271,-500.0,0.00012187,2]
[348460929,1736537459280,-500.0,0.00012187,2]
[348460930,1736537459290,-500.0,0.00012187,2]
[348460931,1736537459300,-2347.56,0.00012187,2]
[348460932,1736537459309,-500.0,0.00012187,2]
[348460933,1736537459318,-500.0,0.00012187,2]
[348460934,1736537459328,-540.18,0.00012187,2]
[348460935,1736537459338,-500.0,0.00012187,2]
[348460936,1736537459349,-500.0,0.00012187,2]
[348460937,1736537459359,-500.0,0.00012187,2]
[348460938,1736537459368,-500.0,0.00012187,2]
[348460939,1736537459379,-500.0,0.00012187,2]
[348460940,1736537459390,-500.0,0.00012187,2]
[348460941,1736537459401,-431.09,0.00012187,2]
[348460942,1736537459412,-1005.9,0.00012187,2]
[348460943,1736537459422,-1644.03,0.00012187,2]
[348460944,1736537459432,-500.0,0.00012187,2]
[348460945,1736537459442,-867.9,0.00012187,2]
[348460946,1736537459451,-500.0,0.00012187,2]
[348460947,1736537459462,-500.0,0.00012187,2]
[348460948,1736537459472,-500.0,0.00012187,2]
[348460949,1736537459481,-1720.31,0.00012187,2]
[348460950,1736537459491,-576.06,0.00012187,2]
[348460951,1736537459501,-882.46,0.00012187,2]
[348460952,1736537459511,-845.69,0.00012187,2]
[348460953,1736537459521,-1409.85,0.00012187,2]
[348460954,1736537459531,-500.0,0.00012187,2]
[348460955,1736537459541,-3659.62,0.00012187,2]
[348460956,1736537459551,-500.0,0.00012187,2]
[348460957,1736537459561,-500.0,0.00012187,2]
[348460958,1736537459571,-500.0,0.00012187,2]
[348460959,1736537459580,-764.53,0.00012187,2]
[348460960,1736537459590,-500.0,0.00012187,2]
[348460961,1736537459599,-500.0,0.00012187,2]
[348460962,1736537459609,-694.14,0.00012187,2]
[348460963,1736537459619,-500.0,0.00012187,2]
[348460964,1736537459629,-500.0,0.00012187,2]
[348460965,1736537459639,-1098.76,0.00012187,2]
[348460966,1736537459648,-500.0,0.00012187,2]
[348460967,1736537459658,-1733.18,0.00012187,2]
[348460968,1736537459668,-500.0,0.00012187,2]
[348460969,1736537459678,-1960.15,0.00012187,2]
[348460970,1736537459688,-1512.28,0.00012187,2]
[348460971,1736537459698,-500.0,0.00012187,2]
[348460972,1736537459713,-500.0,0.00012187,2]
[348460973,1736537459799,-500.0,0.00012187,2]
[348460974,1736537459810,-500.0,0.00012187,2]
[348460975,1736537459820,-501.67,0.00012187,2]
[348460976,1736537459830,-2292.55,0.00012187,2]
[348460977,1736537459842,-2330.59,0.00012187,2]
[348460978,1736537459851,-500.0,0.00012187,2]
[348460979,1736537459861,-538.48,0.00012187,2]
[348460980,1736537459870,-656.52,0.00012187,2]
[348460981,1736537459880,-500.0,0.00012187,2]
[348460982,1736537459889,-500.0,0.00012187,2]
[348460983,1736537459899,-678.14,0.00012187,2]
[348460984,1736537459908,-500.0,0.00012187,2]
[348460985,1736537459918,-500.0,0.00012187,2]
[348460986,1736537459927,-1949.08,0.00012187,2]
[348460987,1736537459937,-500.0,0.00012187,2]
[348460988,1736537459948,-500.0,0.00012187,2]
[348460989,1736537459957,-500.0,0.00012187,2]
[348460990,1736537459967,-1080.72,0.00012187,2]
[348460991,1736537459977,-1090.85,0.00012187,2]
[348460992,1736537459986,-2008.54,0.00012187,2]
[348460993,1736537459996,-541.89,0.00012187,2]
[348460994,1736537460006,-500.0,0.00012187,2]
[348460995,1736537460018,-500.0,0.00012188,2]
[348460996,1736537460027,-500.0,0.00012188,2]
[348460997,1736537460039,-500.0,0.00012188,2]
[348460998,1736537460049,-1500.0,0.00012188,2]
[348460999,1736537460059,-500.0,0.00012188,2]
[348461000,1736537460070,-396.38,0.00012188,2]
[348461001,1736537460079,-778.52,0.00012188,2]
[348461002,1736537460090,-500.0,0.00012188,2]
[348461003,1736537460099,-500.0,0.00012188,2]
[348461004,1736537460110,-793.87,0.00012188,2]
[348461005,1736537460119,-535.56,0.00012188,2]
[348461006,1736537460130,-1160.56,0.00012188,2]
[348461007,1736537460141,-636.74,0.00012188,2]
[348461008,1736537460151,-2231.08,0.00012188,2]
[348461009,1736537460161,-1425.33,0.00012188,2]
[348461010,1736537460171,-991.71,0.00012188,2]
[348461011,1736537460180,-501.35,0.00012189,2]
[348461012,1736537460190,-500.0,0.00012189,2]
[348461013,1736537460200,-1024.1,0.00012189,2]
[348461014,1736537460210,-604.68,0.00012189,2]
[348461015,1736537460220,-500.0,0.00012189,2]
[348461016,1736537460229,-500.0,0.00012189,2]
[348461017,1736537460239,-500.0,0.00012189,2]
[348461018,1736537460249,-1500.0,0.00012189,2]
[348461019,1736537460258,-589.51,0.00012189,2]
[348461020,1736537460271,-500.0,0.00012189,2]
[348461021,1736537460281,-500.0,0.00012189,2]
[348461022,1736537460290,-567.38,0.00012189,2]
[348461023,1736537460300,-958.18,0.00012189,2]
[348461024,1736537460309,-1016.29,0.00012189,2]
[348461025,1736537460319,-1836.11,0.00012189,2]
[348461026,1736537460329,-2165.62,0.00012189,2]
[348461027,1736537460338,-500.0,0.00012189,2]
[348461028,1736537460348,-500.0,0.00012189,2]
[348461029,1736537460358,-500.0,0.0001219,2]
[348461030,1736537460368,-972.23,0.0001219,2]
[348461031,1736537460378,-237.55648707,0.0001219,2]
[348461032,1736537460388,-753.01,0.0001219,2]
[348461033,1736537460398,-500.0,0.0001219,2]
[348461034,1736537460407,-593.76,0.0001219,2]
[348461035,1736537460417,-500.0,0.0001219,2]
[348461036,1736537460427,-500.0,0.0001219,2]
[348461037,1736537460437,-500.0,0.0001219,2]
[348461038,1736537460447,-853.54,0.0001219,2]
[348461039,1736537460457,-996.68,0.00012191,2]
[348461040,1736537460468,-500.0,0.00012191,2]
[348461041,1736537460477,-500.0,0.00012191,2]
[348461042,1736537460487,-835.51,0.00012191,2]
[348461043,1736537460497,-1366.37,0.00012191,2]
[348461044,1736537460506,-1310.54,0.00012191,2]
[348461045,1736537460519,-691.47,0.00012191,2]
[348461046,1736537460529,-522.1,0.00012191,2]
[348461047,1736537460539,-2014.11,0.00012191,2]
[348461048,1736537460548,-500.0,0.00012191,2]
[348461049,1736537460558,-691.09,0.00012191,2]
[348461050,1736537460568,-500.0,0.00012191,2]
[348461051,1736537460578,-653.03,0.00012191,2]
[348461052,1736537460588,-1116.95,0.00012191,2]
[348461053,1736537460598,-321.68972531,0.00012192,2]
[348461054,1736537460608,-260.81795951,0.00012192,2]
[348461055,1736537460617,-321.6897253,0.00012196,2]
[348461056,1736537460628,-260.8179595,0.00012196,2]
[348461057,1736537460638,-150.0,0.00012197,2]
[348461058,1736537460649,-150.0,0.00012197,2]
[348461059,1736537460658,-166.73794238,0.00012199,2]
[348461060,1736537460668,-150.0,0.00012199,2]
[348461061,1736537460679,-1940.76,0.00012199,2]
[348461062,1736537460689,-9064.6637917,0.00012199,2]
[348461063,1736537460699,-1345.70609539,0.00012199,2]
[348461064,1736537460712,-166.73794238,0.000122,2]
[348461065,1736537460723,-9064.66379169,0.000122,2]
[348461066,1736537460733,-1345.70609539,0.000122,2]
[348461067,1736537460743,-166.73794238,0.000122,2]
[348461068,1736537460754,-816.81408836,0.000122,2]
[348461069,1736537460765,-1500.0,0.000122,2]
[348461070,1736537460774,-836.48794592,0.000122,2]
[348461071,1736537460785,-1000.0,0.000122,2]
[348461072,1736537460796,-153.92585718,0.000122,2]
[348461073,1736537460806,-9064.66379169,0.000122,2]
[348461074,1736537460816,-1345.70609539,0.000122,2]
[348461075,1736537460828,-159.39650356,0.000122,2]
[348461076,1736537460838,-321.6897253,0.000122,2]
[348461077,1736537460848,-260.8179595,0.000122,2]
[348461078,1736537460857,-500.0,0.00012201,2]
[348461079,1736537460868,-500.0,0.00012201,2]
[348461080,1736537460877,-200.0,0.00012201,2]
[348461081,1736537460886,-1500.0,0.00012204,2]
[348461082,1736537460896,-150.0,0.00012205,2]
[348461083,1736537460905,-1500.0,0.00012206,2]
[348461084,1736537460914,-150.0,0.00012208,2]
[348461085,1736537460924,-150.0,0.00012211,2]
[348461086,1736537460935,-150.0,0.00012212,2]
[348461087,1736537460945,-200.37027247,0.00012218,2]
[348461088,1736537460955,-150.0,0.00012219,2]
[348461089,1736537460965,-150.0,0.00012226,2]
[348461090,1736537460975,-150.0,0.00012231,2]
[348461091,1736537460985,-150.0,0.00012231,2]
[348461092,1736537460996,-150.0,0.00012232,2]
[348461093,1736537461006,-150.0,0.00012234,2]
[348461094,1736537461016,-150.0,0.00012234,2]
[348461095,1736537461026,-150.50152616,0.00012237,2]
[348461096,1736537461035,-150.0,0.0001224,2]
[348461097,1736537461049,-150.0,0.00012241,2]
[348461098,1736537461059,-150.0,0.00012245,2]
[348461099,1736537461069,-1500.0,0.00012249,2]
[348461100,1736537461078,-150.0,0.0001225,2]
[348461101,1736537461088,-1500.0,0.00012255,2]
[348461102,1736537461098,-150.0,0.00012256,2]
[348461103,1736537461108,-5750.0,0.0001226,2]
[348461104,1736537461118,-300.0,0.00012268,2]
[348461105,1736537461127,-5000.0,0.0001227,3]
[348461106,1736537461138,-150.0,0.0001227,2]
[348461107,1736537461147,-69521.0,0.00012274,2]
[348461108,1736537461157,-150.0,0.00012274,2]
[348461109,1736537461166,-150.0,0.00012281,2]
[348461110,1736537461176,-150.0,0.00012281,2]
[348461111,1736537461186,-150.0,0.00012281,2]
[348461112,1736537461195,-150.0,0.00012282,2]
[348461113,1736537461205,-150.0,0.00012284,2]
[348461114,1736537461216,-5000.0,0.0001229,3]
[348461115,1736537461226,-150.0,0.0001229,2]
[348461116,1736537461236,-2830.800365,0.00012292,2]
[348461117,1736537461247,-7259.7540088,0.00012292,2]
[348461118,1736537461258,-24255.8379857,0.00012292,2]
[348461119,1736537461268,-9028.1124609,0.00012292,2]
[348461120,1736537461278,-150.0,0.00012295,2]
[348461121,1736537461289,-500.0,0.00012298,2]
[348461122,1736537461300,-2000.0,0.00012299,2]
[348461123,1736537461310,-2000.0,0.00012299,2]
[348461124,1736537461320,-2000.0,0.00012299,2]
[348461125,1736537461330,-2000.0,0.00012299,2]
[348461126,1736537461341,-2000.0,0.00012299,2]
[348461127,1736537461352,-2000.0,0.00012299,2]
[348461128,1736537461362,-2000.0,0.00012299,2]
[348461129,1736537461371,-2000.0,0.00012299,2]
[348461130,1736537461381,-2000.0,0.00012299,2]
[348461131,1736537461390,-78322.08,0.00012299,2]
[348461132,1736537461400,-1000.0,0.00012299,2]
[348461133,1736537461409,-150.0,0.00012299,2]
[348461134,1736537461419,-2000.0,0.00012299,2]
[348461135,1736537461429,-500.0,0.00012299,2]
[348461136,1736537461438,-500.0,0.00012299,2]
[348461137,1736537461448,-1940.76,0.00012299,2]
[348461138,1736537461459,-1940.76,0.00012299,2]
[348461139,1736537461469,-1940.76,0.00012299,2]
[348461140,1736537461479,-1940.76,0.00012299,2]
[348461141,1736537461489,-1940.76,0.00012299,2]
[348461142,1736537461499,-11168.12694988,0.00012299,2]
[348461143,1736537461509,-708.0,0.00012299,2]
[348461144,1736537461520,-1826249.66945142,0.000123,2]
[348461145,1736537462093,-500.0,0.00010269,2]
[348461146,1736537462103,-104.07504749,0.00010545,2]
[348461147,1736537462171,-500.0,0.00010269,2]
[348461148,1736537462181,-500.0,0.0001027,2]
[348461149,1736537462191,-500.0,0.00010543,2]
[348461150,1736537462201,-395.92495251,0.00010545,2]
[348461151,1736537462212,-500.0,0.00010819,2]
[348461152,1736537462222,-500.0,0.00011092,2]
[348461153,1736537462233,-500.0,0.00011093,2]
[348461154,1736537462245,-500.0,0.00011366,2]
[348461155,1736537462255,-858.03670589,0.00011369,2]
[348461156,1736537462477,-176.53,0.00010817,2]
[348461157,1736537462488,-500.0,0.0001082,2]
[348461158,1736537462498,-500.0,0.0001082,2]
[348461159,1736537462508,-500.0,0.0001082,2]
[348461160,1736537462519,-313.91607513,0.0001082,2]
[348461161,1736537462531,-500.0,0.0001082,2]
[348461162,1736537462541,-500.0,0.0001082,2]
[348461163,1736537462551,-273.88738643,0.0001082,2]
[348461164,1736537462562,-500.0,0.0001082,2]
[348461165,1736537462572,-362.11551717,0.0001082,2]
[348461166,1736537462583,-500.0,0.00011367,2]
[348461167,1736537462594,-293.79329411,0.00011369,2]
[348461168,1736537462604,-500.0,0.0001164,2]
[348461169,1736537462614,-1151.83,0.00011643,2]
[348461170,1736537462624,-12326.36594325,0.00011713,2]
[348461171,1736537462637,-95165.091414,0.00011713,2]
[348461172,1736537462649,-95025.47265975,0.00011713,2]
[348461173,1736537462670,-471779.98001738,0.00011713,2]
[348461174,1736537462681,-500.0,0.00011914,2]
[348461175,1736537462691,-1151.83,0.00011917,2]
[348461176,1736537462702,-500.0,0.00012188,2]
[348461177,1736537462715,-1151.83,0.00012191,2]
[348461178,1736537462725,-211468.18999294,0.000123,2]
[348461179,1736537463517,-500.0,9.999e-05,2]
[348461180,1736537463527,-546.37,9.999e-05,2]
[348461181,1736537463537,-500.0,0.00010269,2]
[348461182,1736537463547,-162.928752,0.00010269,2]
[348461183,1736537463556,-500.0,0.00010273,2]
[348461184,1736537463566,-500.0,0.00010543,2]
[348461185,1736537463576,-500.0,0.00010547,2]
[348461186,1736537463586,-500.0,0.00010817,2]
[348461187,1736537463596,-566.0,0.00010957,2]
[348461188,1736537463605,-500.0,0.00011091,2]
[348461189,1736537463615,-500.0,0.00011365,2]
[348461190,1736537463624,-162.928752,0.00011639,2]
[348461191,1736537463634,-500.0,0.00011639,2]
[348461192,1736537463644,-500.0,0.00011641,2]
[348461193,1736537463653,-500.0,0.00011913,2]
[348461194,1736537463662,-500.0,0.00011915,2]
[348461195,1736537463671,-25530.72071566,0.000123,2]
[348461196,1736537463683,-163499.99999961,0.000123,2]
[348461197,1736537463809,-151.66,0.00010809,2]
[348461198,1736537463819,-500.0,0.00012187,2]
[348461199,1736537463830,-1620.389504,0.000123,2]
[348461202,1736538496876,579.21,8.219e-05,2]
[348461207,1736538571154,-200.0,9.344e-05,2]
[348461208,1736538571183,-436.4111,9.414e-05,2]
[348461209,1736538571212,-276.79,9.468e-05,2]
[348461210,1736538571239,-3082.274678,9.514e-05,2]
[348461215,1736538631738,-300.0,9.513e-05,2]
[348461216,1736538631749,-879.68381863,9.514e-05,2]
[348461217,1736538631795,-18998.83150337,9.514e-05,2]
[348461218,1736538631804,-250.0,9.514e-05,2]
[348461219,1736538631815,-250.0,9.53e-05,2]
[348461220,1736538631824,-842.06,9.688e-05,2]
[348461221,1736538631834,-487.31,9.707e-05,2]
[348461222,1736538631845,-1000.0,9.826e-05,2]
[348461223,1736538631854,-3913.4589,9.9e-05,2]
[348461224,1736538631864,-150.0,9.998e-05,2]
[348461225,1736538631874,-500.0,9.999e-05,2]
[348461226,1736538631885,-500.0,9.999e-05,2]
[348461227,1736538631896,-500.0,9.999e-05,2]
[348461228,1736538631906,-500.0,9.999e-05,2]
[348461229,1736538631918,-500.0,9.999e-05,2]
[348461230,1736538631930,-500.0,9.999e-05,2]
[348461231,1736538631939,-500.0,9.999e-05,2]
[348461232,1736538631951,-500.0,9.999e-05,2]
[348461233,1736538631961,-500.0,9.999e-05,2]
[348461234,1736538631971,-500.0,9.999e-05,2]
[348461235,1736538631980,-500.0,9.999e-05,2]
[348461236,1736538631991,-500.0,9.999e-05,2]
[348461237,1736538632001,-500.0,9.999e-05,2]
[348461238,1736538632011,-208.33959663,9.999e-05,2]
[348461239,1736538632023,-291.66040337,9.999e-05,2]
[348461240,1736538632032,-500.0,9.999e-05,2]
[348461241,1736538632042,-500.0,9.999e-05,2]
[348461242,1736538632052,-507.16,9.999e-05,2]
[348461243,1736538632064,-500.0,9.999e-05,2]
[348461244,1736538632077,-585.60355172,9.999e-05,2]
[348461245,1736538632086,-500.0,9.999e-05,2]
[348461246,1736538632096,-500.0,9.999e-05,2]
[348461247,1736538632105,-1250.04,9.999e-05,2]
[348461248,1736538632117,-500.0,9.999e-05,2]
[348461249,1736538632126,-238.76295077,9.999e-05,2]
[348461250,1736538632137,-500.0,9.999e-05,2]
[348461251,1736538632149,-500.0,9.999e-05,2]
[348461252,1736538632160,-1754.31,9.999e-05,2]
[348461253,1736538632170,-500.0,9.999e-05,2]
[348461254,1736538632180,-500.0,9.999e-05,2]
[348461255,1736538632190,-500.0,9.999e-05,2]
[348461256,1736538632199,-500.0,9.999e-05,2]
[348461257,1736538632209,-500.0,9.999e-05,2]
[348461259,1736538632218,-500.0,9.999e-05,2]
[348461261,1736538632231,-500.0,9.999e-05,2]
[348461263,1736538632240,-500.0,9.999e-05,2]
[348461265,1736538632250,-500.0,9.999e-05,2]
[348461267,1736538632260,-500.0,9.999e-05,2]
[348461269,1736538632269,-500.0,9.999e-05,2]
[348461271,1736538632278,-698.78,9.999e-05,2]
[348461273,1736538632288,-500.0,9.999e-05,2]
[348461274,1736538632298,-500.0,9.999e-05,2]
[348461276,1736538632311,-500.0,9.999e-05,2]
[348461277,1736538632321,-99.79240209,9.999e-05,2]
[348461279,1736538632333,-400.20759791,9.999e-05,2]
[348461281,1736538632343,-500.0,9.999e-05,2]
[348461283,1736538632352,-254.60380089,9.999e-05,2]
[348461284,1736538632362,-500.0,9.999e-05,2]
[348461286,1736538632372,-500.0,9.999e-05,2]
[348461288,1736538632381,-500.0,9.999e-05,2]
[348461290,1736538632391,-500.0,9.999e-05,2]
[348461292,1736538632401,-500.0,9.999e-05,2]
[348461294,1736538632411,-537.52,9.999e-05,2]
[348461296,1736538632423,-500.0,9.999e-05,2]
[348461298,1736538632432,-853.68,9.999e-05,2]
[348461300,1736538632442,-500.0,9.999e-05,2]
[348461302,1736538632451,-780.35,9.999e-05,2]
[348461304,1736538632461,-1744.59,9.999e-05,2]
[348461306,1736538632471,-469.10761815,9.999e-05,2]
[348461338,1736538637719,-932.02,9.999e-05,2]
[348461339,1736538637733,-343.46238185,9.999e-05,2]
[348461340,1736538637743,-171.56,0.00010061,2]
[348461341,1736538637753,-6528.84373934,0.00010107,4]
[348461342,1736538637765,-421.76676257,0.00010107,4]
[348461343,1736538638072,-485.2,0.00010107,4]
[348461344,1736538638087,-500.0,0.00010107,4]
[348461345,1736538638099,-2805.78205899,0.00010107,4]
[348461346,1736538638111,-362.47,0.00010137,2]
[348461347,1736538638123,-166.41,0.00010139,2]
[348461348,1736538638133,-267.5223,0.00010173,2]
[348461349,1736538638143,-756.02,0.000102,2]
[348461350,1736538638152,-1744.59,0.00010268,2]
[348461351,1736538638162,-502.17195662,0.00010269,2]
[348461352,1736538638172,-500.73778728,0.00010269,2]
[348461353,1736538638181,-500.45611121,0.00010269,2]
[348461354,1736538638191,-500.43183548,0.00010269,2]
[348461355,1736538638200,-501.06039653,0.00010269,2]
[348461356,1736538638210,-500.0,0.00010269,2]
[348461357,1736538638220,-1000.0,0.00010269,2]
[348461358,1736538638230,-500.8417809,0.00010269,2]
[348461359,1736538638240,-500.0,0.00010269,2]
[348461360,1736538638251,-500.0,0.00010269,2]
[348461361,1736538638261,-500.0,0.00010269,2]
[348461362,1736538638270,-500.0,0.00010269,2]